fUSD/lending_fUSD_20250426
["ID","MTS","AMOUNT","RATE_DAILY","PERIOD"]
[359106721,1745710242361,-400.0,0.00019775,2]
[359106723,1745710242371,-400.0,0.00019775,2]
[359106725,1745710242381,-400.0,0.00019775,2]
[359106727,1745710242390,-662.3,0.00019775,2]
[359106729,1745710242399,-316.15480118,0.00019775,2]
[359106731,1745710242408,-501.9982147,0.00019775,2]
[359106733,1745710242417,-400.0,0.00019775,2]
[359106735,1745710242427,-531.68,0.00019775,2]
[359106737,1745710242438,-400.0,0.00019775,2]
[359106739,1745710242447,-400.0,0.00019775,2]
[359106741,1745710242456,-400.0,0.00019775,2]
[359106744,1745710242466,-2131.63,0.00019775,2]
[359106747,1745710242475,-437.54,0.00019775,2]
[359106749,1745710242485,-400.0,0.00019775,2]
[359106751,1745710242495,-400.0,0.00019775,2]
[359106753,1745710242505,-400.0,0.00019775,2]
[359106755,1745710242514,-400.0,0.00019775,2]
[359106757,1745710242523,-400.0,0.00019775,2]
[359106759,1745710242533,-400.0,0.00019775,2]
[359106762,1745710242542,-400.0,0.00019775,2]
[359106764,1745710242551,-740.15,0.00019775,2]
[359106766,1745710242562,-856.03,0.00019775,2]
[359106768,1745710242572,-400.0,0.00019775,2]
[359106770,1745710242581,-681.38,0.00019775,2]
[359106772,1745710242590,-795.74,0.00019775,2]
[359106774,1745710242599,-520.48143566,0.00019775,2]
[359106776,1745710242609,-696.49,0.00019775,2]
[359106778,1745710242618,-400.0,0.00019775,2]
[359106780,1745710242627,-400.0,0.00019775,2]
[359106782,1745710242637,-400.0,0.00019775,2]
[359106784,1745710242646,-400.0,0.00019775,2]
[359106787,1745710242656,-400.0,0.00019775,2]
[359106789,1745710242666,-26079.58,0.00019775,2]
[359106791,1745710242676,-610.59,0.00019775,2]
[359106793,1745710242686,-400.0,0.00019775,2]
[359106795,1745710242695,-776.66,0.00019775,2]
[359106797,1745710242705,-400.0,0.00019775,2]
[359106799,1745710242715,-462.76,0.00019775,2]
[359106801,1745710242724,-8936.62,0.00019775,2]
[359106803,1745710242733,-400.0,0.00019775,2]
[359106805,1745710242742,-400.0,0.00019775,2]
[359106807,1745710242752,-400.0,0.00019775,2]
[359106808,1745710242761,-400.0,0.00019775,2]
[359106810,1745710242770,-400.0,0.00019775,2]
[359106813,1745710242781,-400.0,0.00019775,2]
[359106814,1745710242790,-4462.53,0.00019775,2]
[359106816,1745710242800,-440.67,0.00019775,2]
[359106819,1745710242809,-4035.47,0.00019775,2]
[359106820,1745710242820,-500.0,0.00019775,2]
[359106823,1745710242829,-500.0,0.00019775,2]
[359106825,1745710242839,-414.97,0.00019775,2]
[359106826,1745710242850,-400.0,0.00019775,2]
[359106828,1745710242862,-400.0,0.00019775,2]
[359106831,1745710242872,-1849.04,0.00019775,2]
[359106832,1745710242883,-400.0,0.00019775,2]
[359106834,1745710242893,-518.00734972,0.00019775,2]
[359106836,1745710242904,-523.55,0.00019775,2]
[359106838,1745710242915,-677.79,0.00019775,2]
[359106840,1745710242924,-400.0,0.00019775,2]
[359106843,1745710242934,-400.0,0.00019775,2]
[359106845,1745710242943,-520.05285185,0.00019775,2]
[359106846,1745710242954,-500.0,0.00019775,2]
[359106848,1745710242963,-400.0,0.00019775,2]
[359106850,1745710242973,-539.33,0.00019775,2]
[359106853,1745710242983,-400.0,0.00019775,2]
[359106854,1745710242994,-500.0,0.00019775,2]
[359106857,1745710243004,-421.2,0.00019775,2]
[359106859,1745710243014,-400.0,0.00019775,2]
[359106861,1745710243025,-500.0,0.00019775,2]
[359106863,1745710243034,-461.02,0.00019775,2]
[359106864,1745710243044,-400.0,0.00019775,2]
[359106866,1745710243054,-400.0,0.00019775,2]
[359106868,1745710243068,-3462.36,0.00019775,2]
[359106870,1745710243079,-150.0,0.00019775,2]
[359106872,1745710243089,-400.0,0.00019775,2]
[359106874,1745710243098,-400.0,0.00019775,2]
[359106876,1745710243107,-150.0,0.00019775,2]
[359106878,1745710243117,-150.0,0.00019775,2]
[359106880,1745710243127,-600.3,0.00019775,2]
[359106882,1745710243136,-400.0,0.00019775,2]
[359106884,1745710243145,-400.0,0.00019775,2]
[359106887,1745710243155,-400.0,0.00019775,2]
[359106890,1745710243165,-400.0,0.00019775,2]
[359106892,1745710243174,-400.0,0.00019775,2]
[359106894,1745710243184,-400.0,0.00019775,2]
[359106896,1745710243193,-619.61,0.00019775,2]
[359106899,1745710243202,-570.34,0.00019775,2]
[359106901,1745710243212,-572.91,0.00019775,2]
[359106903,1745710243222,-400.0,0.00019775,2]
[359106905,1745710243231,-489.05,0.00019775,2]
[359106907,1745710243240,-500.0,0.00019775,2]
[359106909,1745710243249,-750.72,0.00019775,2]
[359106911,1745710243259,-400.0,0.00019775,2]
[359106912,1745710243268,-400.0,0.00019775,2]
[359106915,1745710243278,-400.0,0.00019775,2]
[359106916,1745710243287,-400.0,0.00019775,2]
[359106918,1745710243296,-518.58376662,0.00019775,2]
[359106920,1745710243306,-694.77,0.00019775,2]
[359106922,1745710243316,-400.0,0.00019775,2]
[359106925,1745710243325,-460.98,0.00019775,2]
[359106927,1745710243335,-782.38,0.00019775,2]
[359106928,1745710243344,-400.0,0.00019775,2]
[359106930,1745710243354,-400.0,0.00019775,2]
[359106933,1745710243364,-400.0,0.00019775,2]
[359106934,1745710243373,-372.42779514,0.00019775,2]
[359106936,1745710243382,-400.0,0.00019775,2]
[359106938,1745710243392,-478.55,0.00019775,2]
[359106940,1745710243402,-618.97,0.00019775,2]
[359106942,1745710243413,-400.0,0.00019775,2]
[359106944,1745710243422,-400.0,0.00019775,2]
[359106946,1745710243431,-400.0,0.00019775,2]
[359106948,1745710243441,-400.0,0.00019775,2]
[359106950,1745710243450,-400.0,0.00019775,2]
[359106952,1745710243459,-213.53646551,0.00019775,2]
[359106954,1745710243468,-400.0,0.00019775,2]
[359106956,1745710243478,-500.0,0.00019775,2]
[359106958,1745710243487,-400.0,0.00019775,2]
[359106960,1745710243497,-500.0,0.00019775,2]
[359106962,1745710243507,-400.0,0.00019775,2]
[359106964,1745710243516,-400.0,0.00019775,2]
[359106966,1745710243526,-400.0,0.00019775,2]
[359106968,1745710243536,-515.42272426,0.00019775,2]
[359106970,1745710243545,-400.0,0.00019775,2]
[359106972,1745710243555,-400.0,0.00019775,2]
[359106974,1745710243564,-400.0,0.00019775,2]
[359106976,1745710243573,-400.0,0.00019775,2]
[359106978,1745710243583,-400.0,0.00019775,2]
[359106980,1745710243592,-400.0,0.00019775,2]
[359106982,1745710243603,-560.86,0.00019775,2]
[359106984,1745710243613,-400.0,0.00019775,2]
[359106986,1745710243623,-486.21,0.00019775,2]
[359106988,1745710243632,-400.0,0.00019775,2]
[359106990,1745710243642,-400.0,0.00019775,2]
[359106992,1745710243651,-495.41,0.00019775,2]
[359106994,1745710243661,-400.0,0.00019775,2]
[359106996,1745710243670,-400.0,0.00019775,2]
[359106998,1745710243680,-942.99,0.00019775,2]
[359107000,1745710243689,-400.0,0.00019775,2]
[359107002,1745710243700,-500.0,0.00019775,2]
[359107004,1745710243710,-400.0,0.00019775,2]
[359107006,1745710243719,-400.0,0.00019775,2]
[359107008,1745710243728,-400.0,0.00019775,2]
[359107010,1745710243738,-502.9539834,0.00019775,2]
[359107012,1745710243748,-400.0,0.00019775,2]
[359107014,1745710243757,-548.32,0.00019775,2]
[359107016,1745710243766,-400.0,0.00019775,2]
[359107018,1745710243776,-214.34432765,0.00019775,2]
[359107020,1745710243785,-150.0,0.00019775,2]
[359107022,1745710243795,-150.0,0.00019775,2]
[359107024,1745710243804,-427.87,0.00019775,2]
[359107026,1745710243814,-150.0,0.00019775,2]
[359107028,1745710243823,-500.0,0.00019775,2]
[359107030,1745710243832,-500.0,0.00019775,2]
[359107032,1745710243841,-500.0,0.00019775,2]
[359107034,1745710243851,-400.0,0.00019775,2]
[359107036,1745710243860,-400.0,0.00019775,2]
[359107037,1745710243870,-400.0,0.00019775,2]
[359107040,1745710243879,-400.0,0.00019775,2]
[359107042,1745710243889,-500.0,0.00019775,2]
[359107044,1745710243898,-400.0,0.00019775,2]
[359107045,1745710243908,-400.0,0.00019775,2]
[359107047,1745710243918,-400.0,0.00019775,2]
[359107049,1745710243927,-400.0,0.00019775,2]
[359107051,1745710243937,-400.0,0.00019775,2]
[359107053,1745710243946,-400.0,0.00019775,2]
[359107055,1745710243955,-400.0,0.00019775,2]
[359107057,1745710243965,-671.65,0.00019775,2]
[359107059,1745710243974,-400.0,0.00019775,2]
[359107062,1745710243984,-400.0,0.00019775,2]
[359107063,1745710243993,-400.0,0.00019775,2]
[359107066,1745710244003,-400.0,0.00019775,2]
[359107068,1745710244013,-701.61,0.00019775,2]
[359107070,1745710244023,-500.0,0.00019775,2]
[359107072,1745710244033,-400.0,0.00019775,2]
[359107074,1745710244042,-507.73663296,0.00019775,2]
[359107076,1745710244052,-400.0,0.00019775,2]
[359107078,1745710244062,-400.0,0.00019775,2]
[359107080,1745710244074,-400.0,0.00019775,2]
[359107082,1745710244084,-400.0,0.00019775,2]
[359107084,1745710244093,-201.89719836,0.00019775,2]
[359107086,1745710244103,-400.0,0.00019775,2]
[359107088,1745710244114,-200.0,0.00019775,2]
[359107090,1745710244124,-612.0,0.00019775,2]
[359107092,1745710244134,-649.43,0.00019775,2]
[359107094,1745710244144,-445.82,0.00019775,2]
[359107096,1745710244154,-499.48,0.00019775,2]
[359107098,1745710244163,-150.0,0.00019775,2]
[359107100,1745710244173,-400.0,0.00019775,2]
[359107102,1745710244183,-531.85,0.00019775,2]
[359107104,1745710244192,-1474.52,0.00019775,2]
[359107106,1745710244201,-607.09,0.00019775,2]
[359107108,1745710244211,-400.0,0.00019775,2]
[359107110,1745710244220,-400.0,0.00019775,2]
[359107112,1745710244230,-616.0,0.00019775,2]
[359107114,1745710244239,-27666.815216,0.00019775,2]
[359107116,1745710244249,-400.0,0.00019776,2]
[359107118,1745710244259,-400.0,0.00019776,2]
[359107120,1745710244268,-400.0,0.00019776,2]
[359107122,1745710244278,-400.0,0.00019776,2]
[359107124,1745710244288,-452.39,0.00019776,2]
[359107126,1745710244297,-400.0,0.00019776,2]
[359107128,1745710244307,-400.0,0.00019776,2]
[359107130,1745710244317,-400.0,0.00019776,2]
[359107132,1745710244327,-400.0,0.00019776,2]
[359107134,1745710244336,-400.0,0.00019776,2]
[359107135,1745710244346,-400.0,0.00019776,2]
[359107137,1745710244355,-400.0,0.00019776,2]
[359107139,1745710244365,-400.0,0.00019776,2]
[359107140,1745710244375,-400.0,0.00019776,2]
[359107142,1745710244385,-400.0,0.00019776,2]
[359107144,1745710244395,-400.0,0.00019776,2]
[359107146,1745710244405,-583.29,0.00019776,2]
[359107148,1745710244415,-300.0,0.00019776,2]
[359107150,1745710244425,-500.0,0.00019776,2]
[359107152,1745710244435,-424.49,0.00019776,2]
[359107154,1745710244445,-400.0,0.00019776,2]
[359107156,1745710244456,-400.0,0.00019776,2]
[359107158,1745710244466,-400.0,0.00019776,2]
[359107160,1745710244476,-166.08524711,0.00019776,2]
[359107162,1745710244485,-400.0,0.00019776,2]
[359107164,1745710244495,-400.0,0.00019776,2]
[359107166,1745710244505,-400.0,0.00019776,2]
[359107168,1745710244514,-400.0,0.00019776,2]
[359107170,1745710244523,-601.08,0.00019776,2]
[359107172,1745710244533,-400.0,0.00019776,2]
[359107174,1745710244543,-478.8,0.00019776,2]
[359107176,1745710244553,-636.38,0.00019776,2]
[359107178,1745710244562,-276.35282032,0.00019776,2]
[359107180,1745710244573,-500.0,0.00019776,2]
[359107182,1745710244582,-400.0,0.00019776,2]
[359107184,1745710244593,-733.83,0.00019776,2]
[359107186,1745710244602,-500.0,0.00019776,2]
[359107188,1745710244612,-400.0,0.00019776,2]
[359107190,1745710244622,-400.0,0.00019776,2]
[359107192,1745710244631,-400.0,0.00019776,2]
[359107194,1745710244641,-508.52303962,0.00019776,2]
[359107196,1745710244650,-500.0,0.00019776,2]
[359107198,1745710244660,-400.0,0.00019776,2]
[359107200,1745710244669,-400.0,0.00019776,2]
[359107202,1745710244680,-400.0,0.00019776,2]
[359107204,1745710244690,-400.0,0.00019776,2]
[359107206,1745710244700,-500.0,0.00019776,2]
[359107208,1745710244710,-500.0,0.00019776,2]
[359107210,1745710244719,-400.0,0.00019776,2]
[359107212,1745710244728,-500.0,0.00019776,2]
[359107214,1745710244738,-555.17,0.00019776,2]
[359107216,1745710244748,-400.0,0.00019776,2]
[359107218,1745710244759,-407.24,0.00019776,2]
[359107220,1745710244770,-400.0,0.00019776,2]
[359107222,1745710244779,-400.0,0.00019776,2]
[359107224,1745710244790,-439.42,0.00019776,2]
[359107226,1745710244800,-400.0,0.00019776,2]
[359107228,1745710244809,-467.58,0.00019776,2]
[359107230,1745710244819,-400.0,0.00019776,2]
[359107231,1745710244828,-400.0,0.00019776,2]
[359107234,1745710244838,-400.0,0.00019776,2]
[359107235,1745710244849,-400.0,0.00019776,2]
[359107238,1745710244860,-400.0,0.00019776,2]
[359107240,1745710244870,-460.64,0.00019776,2]
[359107242,1745710244881,-500.0,0.00019776,2]
[359107244,1745710244891,-500.0,0.00019776,2]
[359107246,1745710244902,-380.18,0.00019776,2]
[359107248,1745710244913,-61124.78016037,0.00019776,2]
[359107249,1745710244925,-250.46,0.00019777,2]
[359107252,1745710244936,-4644.19194562,0.00019792,2]
[359107253,1745710244946,-10600.6975972,0.00019798,2]
[359107256,1745710244956,-735.8646718,0.00019799,2]
[359107257,1745710244967,-1698.63728024,0.000198,2]
[359107259,1745710244976,-3663.55486908,0.000198,2]
[359107261,1745710244986,-153031.88953839,0.000198,2]
[359107263,1745710244996,-200.0,0.00019802,2]
[359107265,1745710245007,-612.0,0.00019802,2]
[359107267,1745710245016,-1698.63728024,0.00019825,2]
[359107269,1745710245026,-612.0,0.0001983,2]
[359107271,1745710245036,-198.02500503,0.0001983,2]
[359107273,1745710245046,-3663.55486908,0.00019833,2]
[359107275,1745710245055,-670.13,0.00019849,2]
[359107277,1745710245066,-1698.63728024,0.0001985,2]
[359107279,1745710245076,-612.0,0.00019857,2]
[359107281,1745710245085,-3663.55486908,0.00019867,2]
[359107283,1745710245095,-2301.88406994,0.0001987,2]
[359107284,1745710245104,-1698.63728024,0.00019875,2]
[359107286,1745710245113,-612.0,0.00019885,2]
[359107288,1745710245123,-500.0,0.00019886,2]
[359107290,1745710245132,-17301.9415,0.00019886,2]
[359107292,1745710245142,-2692.519,0.00019887,2]
[359107294,1745710245151,-176.361,0.00019887,2]
[359107296,1745710245161,-158.68254028,0.000199,2]
[359107298,1745710245170,-466.8363278,0.000199,2]
[359107300,1745710245180,-3663.55486908,0.000199,2]
[359107302,1745710245190,-10971.48454667,0.000199,2]
[359107304,1745710245199,-168.56609644,0.000199,2]
[359107306,1745710245209,-1698.63728024,0.000199,2]
[359107308,1745710245218,-612.0,0.00019912,2]
[359107310,1745710245228,-612.0,0.00019939,2]
[359107312,1745710245238,-579.0,0.00019956,2]
[359107314,1745710245248,-1446.0,0.00019956,2]
[359107316,1745710245258,-911.0,0.00019956,2]
[359107318,1745710245267,-2063.0,0.00019956,2]
[359107320,1745710245277,-548.0,0.00019956,2]
[359107322,1745710245287,-1135.0,0.00019956,2]
[359107324,1745710245297,-920.0,0.00019956,2]
[359107326,1745710245307,-1336.0,0.00019956,2]
[359107329,1745710245318,-6193.0,0.00019956,2]
[359107331,1745710245327,-3991.0,0.00019956,2]
[359107353,1745710245539,-612.0,0.00019967,2]
[359107356,1745710245552,-215.28252671,0.00019971,2]
[359107358,1745710245562,-151.0,0.00019972,2]
[359107359,1745710245571,-151.0,0.00019972,2]
[359107361,1745710245581,-187.0,0.00019973,2]
[359107363,1745710245591,-500.0,0.00019973,2]
[359107365,1745710245601,-500.0,0.00019973,2]
[359107367,1745710245611,-500.0,0.00019973,2]
[359107369,1745710245622,-500.0,0.00019973,2]
[359107371,1745710245632,-500.0,0.00019973,2]
[359107373,1745710245642,-631.98009462,0.00019973,2]
[359107374,1745710245651,-500.0,0.00019973,2]
[359107375,1745710245662,-500.0,0.00019973,2]
[359107376,1745710245672,-500.0,0.00019973,2]
[359107377,1745710245682,-500.0,0.00019973,2]
[359107378,1745710245692,-500.0,0.00019973,2]
[359107379,1745710245702,-500.0,0.00019973,2]
[359107380,1745710245712,-500.0,0.00019973,2]
[359107381,1745710245721,-500.0,0.00019973,2]
[359107382,1745710245732,-9566.605811,0.00019973,2]
[359107383,1745710245743,-1850.63,0.00019973,2]
[359107384,1745710245752,-207.751238,0.00019973,2]
[359107385,1745710245762,-578.01,0.00019973,2]
[359107386,1745710245772,-400.0,0.00019973,2]
[359107387,1745710245782,-400.0,0.00019973,2]
[359107388,1745710245792,-202.565733,0.00019973,2]
[359107389,1745710245802,-732.0,0.00019973,2]
[359107390,1745710245813,-400.0,0.00019973,2]
[359107391,1745710245823,-400.0,0.00019973,2]
[359107392,1745710245834,-400.0,0.00019973,2]
[359107393,1745710245845,-400.0,0.00019973,2]
[359107394,1745710245855,-2270.77,0.00019973,2]
[359107396,1745710245865,-558.58,0.00019973,2]
[359107398,1745710245876,-240.5473059,0.00019973,2]
[359107400,1745710245886,-400.0,0.00019973,2]
[359107403,1745710245897,-400.0,0.00019973,2]
[359107404,1745710245907,-400.0,0.00019973,2]
[359107407,1745710245918,-400.0,0.00019973,2]
[359107409,1745710245929,-400.0,0.00019973,2]
[359107411,1745710245940,-400.0,0.00019973,2]
[359107412,1745710245951,-400.0,0.00019973,2]
[359107414,1745710245960,-406.97,0.00019973,2]
[359107416,1745710245970,-534.74,0.00019973,2]
[359107419,1745710245980,-302.0511064,0.00019973,2]
[359107420,1745710245991,-578.17,0.00019973,2]
[359107422,1745710246002,-400.0,0.00019973,2]
[359107424,1745710246012,-413.77,0.00019973,2]
[359107426,1745710246022,-626.62,0.00019973,2]
[359107428,1745710246034,-400.0,0.00019973,2]
[359107431,1745710246044,-400.0,0.00019973,2]
[359107433,1745710246055,-495.98,0.00019973,2]
[359107435,1745710246068,-400.0,0.00019973,2]
[359107437,1745710246078,-737.0,0.00019973,2]
[359107439,1745710246090,-479.06,0.00019973,2]
[359107440,1745710246100,-400.0,0.00019973,2]
[359107443,1745710246111,-545.7,0.00019973,2]
[359107445,1745710246121,-400.0,0.00019973,2]
[359107447,1745710246131,-483.98,0.00019973,2]
[359107449,1745710246142,-400.0,0.00019973,2]
[359107451,1745710246152,-400.0,0.00019973,2]
[359107453,1745710246163,-533.12,0.00019973,2]
[359107455,1745710246174,-483.43,0.00019973,2]
[359107457,1745710246184,-400.0,0.00019973,2]
[359107459,1745710246193,-617.28,0.00019973,2]
[359107461,1745710246203,-400.0,0.00019973,2]
[359107463,1745710246212,-400.0,0.00019973,2]
[359107465,1745710246222,-400.0,0.00019973,2]
[359107467,1745710246232,-400.0,0.00019973,2]
[359107468,1745710246242,-400.81,0.00019973,2]
[359107471,1745710246252,-400.0,0.00019973,2]
[359107473,1745710246263,-400.0,0.00019973,2]
[359107475,1745710246274,-755.69,0.00019973,2]
[359107476,1745710246286,-5470.68,0.00019973,2]
[359107478,1745710246297,-400.0,0.00019973,2]
[359107481,1745710246307,-473.32,0.00019973,2]
[359107483,1745710246317,-400.0,0.00019973,2]
[359107484,1745710246326,-400.0,0.00019973,2]
[359107486,1745710246336,-400.0,0.00019973,2]
[359107488,1745710246346,-400.0,0.00019973,2]
[359107490,1745710246355,-400.0,0.00019973,2]
[359107492,1745710246365,-400.0,0.00019973,2]
[359107494,1745710246375,-400.0,0.00019973,2]
[359107496,1745710246384,-400.0,0.00019973,2]
[359107498,1745710246394,-400.0,0.00019973,2]
[359107500,1745710246404,-400.0,0.00019973,2]
[359107502,1745710246414,-400.0,0.00019973,2]
[359107504,1745710246424,-400.0,0.00019973,2]
[359107505,1745710246434,-200.0,0.00019973,2]
[359107507,1745710246445,-460.06,0.00019973,2]
[359107509,1745710246454,-659.99,0.00019973,2]
[359107511,1745710246464,-400.0,0.00019973,2]
[359107513,1745710246474,-212.45001774,0.00019975,2]
[359107515,1745710246484,-170890.82067895,0.0001998,2]
[359107516,1745710246493,-400.0,0.00019984,2]
[359107518,1745710246504,-400.0,0.00019984,2]
[359107520,1745710246513,-400.0,0.00019984,2]
[359107522,1745710246523,-500.0,0.00019984,2]
[359107524,1745710246533,-500.0,0.00019984,2]
[359107526,1745710246543,-500.0,0.00019984,2]
[359107528,1745710246552,-500.0,0.00019984,2]
[359107530,1745710246562,-670.13,0.00019984,2]
[359107532,1745710246572,-151.0,0.00019985,2]
[359107534,1745710246582,-106869.6578711,0.00019985,2]
[359107536,1745710246591,-13831.0901156,0.00019985,2]
[359107538,1745710246601,-87761.2689998,0.00019985,2]
[359107540,1745710246611,-3763.2353787,0.00019985,2]
[359107542,1745710246620,-10613.0138391,0.00019985,2]
[359107544,1745710246630,-69093.0691754,0.00019985,2]
[359107546,1745710246639,-1381.2884132,0.00019985,2]
[359107547,1745710246648,-500.0,0.00019985,2]
[359107549,1745710246659,-500.0,0.00019985,2]
[359107551,1745710246668,-500.0,0.00019985,2]
[359107553,1745710246678,-500.0,0.00019985,2]
[359107555,1745710246687,-500.0,0.00019985,2]
[359107557,1745710246696,-500.0,0.00019985,2]
[359107559,1745710246706,-500.0,0.00019985,2]
[359107561,1745710246715,-500.0,0.00019985,2]
[359107563,1745710246725,-151.0,0.00019985,2]
[359107565,1745710246735,-151.0,0.00019985,2]
[359107567,1745710246744,-151.0,0.00019985,2]
[359107569,1745710246754,-494.981625,0.00019985,2]
[359107571,1745710246764,-494.981625,0.00019985,2]
[359107573,1745710246773,-151.0,0.00019985,2]
[359107575,1745710246782,-151.0,0.00019985,2]
[359107577,1745710246792,-151.0,0.00019985,2]
[359107579,1745710246801,-670.13,0.00019985,2]
[359107581,1745710246811,-670.13,0.00019985,2]
[359107583,1745710246821,-151.0,0.00019986,2]
[359107585,1745710246831,-151.0,0.00019986,2]
[359107587,1745710246840,-90862.6074015,0.00019986,2]
[359107588,1745710246850,-74855.5569319,0.00019986,2]
[359107590,1745710246859,-11759.4547989,0.00019986,2]
[359107592,1745710246869,-9687.8194822,0.00019986,2]
[359107593,1745710246878,-3689.15160934,0.00019986,2]
[359107599,1745710247261,-89382.65422976,0.00019986,2]
[359107600,1745710247271,-98382.3426784,0.00019986,2]
[359107601,1745710247281,-151.0,0.00019986,2]
[359107602,1745710247290,-151.0,0.00019986,2]
[359107603,1745710247300,-151.0,0.00019986,2]
[359107604,1745710247310,-153.481537,0.00019986,2]
[359107605,1745710247320,-151.0,0.00019986,2]
[359107606,1745710247329,-153.291055,0.00019986,2]
[359107607,1745710247339,-3984.5920089,0.00019986,2]
[359107608,1745710247348,-4205.9486391,0.00019986,2]
[359107609,1745710247358,-11237.2801269,0.00019986,2]
[359107610,1745710247368,-11861.5464146,0.00019986,2]
[359107611,1745710247378,-73157.1808837,0.00019986,2]
[359107612,1745710247388,-77221.2925921,0.00019986,2]
[359107613,1745710247397,-151.0,0.00019986,2]
[359107614,1745710247407,-153.995718,0.00019986,2]
[359107615,1745710247417,-151.0,0.00019986,2]
[359107616,1745710247427,-151.0,0.00019986,2]
[359107617,1745710247437,-152.819799,0.00019986,2]
[359107618,1745710247447,-151.0,0.00019986,2]
[359107619,1745710247457,-151.0,0.00019986,2]
[359107620,1745710247467,-151.0,0.00019986,2]
[359107621,1745710247476,-151.0,0.00019986,2]
[359107622,1745710247486,-151.0,0.00019986,2]
[359107623,1745710247496,-151.0,0.00019986,2]
[359107624,1745710247506,-1771.6320331,0.00019986,2]
[359107626,1745710247516,-2161.975653,0.00019986,2]
[359107628,1745710247526,-152.021036,0.00019986,2]
[359107629,1745710247536,-151.0,0.00019986,2]
[359107631,1745710247545,-572.760803,0.00019986,2]
[359107633,1745710247555,-572.760803,0.00019986,2]
[359107635,1745710247564,-151.0,0.00019986,2]
[359107637,1745710247574,-151.0,0.00019986,2]
[359107639,1745710247583,-151.0,0.00019986,2]
[359107641,1745710247593,-151.0,0.00019986,2]
[359107643,1745710247603,-151.0,0.00019986,2]
[359107645,1745710247612,-151.0,0.00019986,2]
[359107647,1745710247622,-151.0,0.00019986,2]
[359107649,1745710247632,-151.0,0.00019986,2]
[359107650,1745710247641,-151.0,0.00019986,2]
[359107651,1745710247651,-151.0,0.00019986,2]
[359107652,1745710247660,-151.0,0.00019986,2]
[359107654,1745710247670,-151.0,0.00019986,2]
[359107656,1745710247680,-158.424031,0.00019986,2]
[359107658,1745710247691,-151.0,0.00019986,2]
[359107660,1745710247700,-151.0,0.00019986,2]
[359107662,1745710247710,-156.326837,0.00019986,2]
[359107664,1745710247719,-151.0,0.00019986,2]
[359107666,1745710247729,-151.0,0.00019986,2]
[359107668,1745710247739,-153.660397,0.00019986,2]
[359107670,1745710247748,-151.0,0.00019986,2]
[359107672,1745710247758,-151.0,0.00019986,2]
[359107674,1745710247767,-151.0,0.00019986,2]
[359107685,1745710247863,-231.200449,0.00019986,2]
[359107687,1745710247874,-231.200449,0.00019986,2]
[359107689,1745710247883,-151.0,0.00019986,2]
[359107691,1745710247892,-432.788147,0.00019986,2]
[359107693,1745710247902,-432.788147,0.00019986,2]
[359107695,1745710247911,-186.387326,0.00019986,2]
[359107697,1745710247920,-186.387326,0.00019986,2]
[359107698,1745710247930,-151.0,0.00019986,2]